bitfinex/quotes_BTCUSD_20240719
["timestamp","ask_amount","ask_price","bid_price","bid_amount"]
[1721366132479,0.00083,64284.0,64283.0,0.611986]
[1721366132610,0.00083,64284.0,64283.0,0.300862]
[1721366134555,0.00883,64284.0,64283.0,0.300862]
[1721366134765,0.00883,64284.0,64283.0,0.611986]
[1721366134969,0.00083,64284.0,64283.0,0.611986]
[1721366135161,0.00883,64284.0,64283.0,0.92411]
[1721366135363,0.01183,64284.0,64283.0,0.92511]
[1721366135583,0.00383,64284.0,64283.0,0.92411]
[1721366135935,0.00383,64284.0,64283.0,0.92511]
[1721366135936,0.00483,64284.0,64283.0,0.92511]
[1721366136552,0.00183,64284.0,64283.0,0.92411]
[1721366137096,0.00183,64284.0,64283.0,0.92511]
[1721366137097,0.00883,64284.0,64283.0,0.92511]
[1721366137210,0.00783,64284.0,64283.0,0.92411]
[1721366137409,0.00783,64284.0,64283.0,0.92511]
[1721366137613,0.01583,64284.0,64283.0,0.92511]
[1721366137813,0.01583,64284.0,64283.0,0.92411]
[1721366138214,0.02383,64284.0,64283.0,0.92511]
[1721366138426,0.02383,64284.0,64283.0,1.236234]
[1721366138630,0.02383,64284.0,64283.0,1.39061574]
[1721366140267,0.02383,64284.0,64283.0,1.39161574]
[1721366140268,0.00083,64284.0,64283.0,1.39161574]
[1721366140459,0.00083,64284.0,64283.0,1.39361574]
[1721366140659,0.00083,64284.0,64283.0,1.39061574]
[1721366140934,0.00083,64284.0,64283.0,1.39361574]
[1721366141136,0.00083,64284.0,64283.0,1.39661574]
[1721366151366,0.00083,64284.0,64283.0,0.1533]
[1721366151555,0.00083,64284.0,64283.0,0.308862]
[1721366151987,0.00083,64284.0,64283.0,0.305862]
[1721366152395,0.00083,64284.0,64283.0,0.300862]
[1721366152592,0.00183,64284.0,64283.0,0.300862]
[1721366153110,0.00083,64284.0,64283.0,0.300862]
[1721366153288,0.00283,64284.0,64283.0,0.300862]
[1721366153471,0.00183,64284.0,64283.0,0.300862]
[1721366153850,0.00383,64284.0,64283.0,0.300862]
[1721366155575,0.00383,64284.0,64283.0,0.611986]
[1721366156478,0.00383,64284.0,64283.0,1.234234]
[1721366157308,0.00283,64284.0,64283.0,1.234234]
[1721366157692,0.00083,64284.0,64283.0,1.234234]
[1721366158090,0.00083,64284.0,64283.0,1.236234]
[1721366159519,0.00083,64284.0,64283.0,1.239234]
[1721366159918,0.00083,64284.0,64283.0,1.236234]
[1721366160301,0.00083,64284.0,64283.0,1.239234]
[1721366160733,0.00083,64284.0,64283.0,0.92811]
[1721366161790,0.00083,64284.0,64283.0,0.240162]
[1721366162565,0.00083,64284.0,64283.0,0.237162]
[1721366162774,0.00283,64284.0,64283.0,0.235162]
[1721366163174,0.00683,64284.0,64283.0,0.235162]
[1721366163337,0.00483,64284.0,64283.0,0.235162]
[1721366163917,0.00683,64284.0,64283.0,0.235162]
[1721366164281,0.00683,64284.0,64282.0,0.0628]
[1721366164282,0.00683,64284.0,64282.0,0.1449]
[1721366164741,0.00683,64284.0,64280.0,0.155567]
[1721366164889,0.06389196,64283.0,64280.0,0.155567]
[1721366165960,0.06389196,64283.0,64281.0,0.155566]
[1721366167010,0.06589196,64283.0,64279.0,0.15557]
[1721366167211,0.002,64283.0,64279.0,0.15557]
[1721366167421,0.002,64283.0,64278.0,0.1406]
[1721366167422,0.001,64283.0,64280.0,0.155568]
[1721366167624,0.003,64283.0,64280.0,0.155568]
[1721366168082,0.06390198,64282.0,64280.0,0.155568]
[1721366169060,0.001,64283.0,64280.0,0.155568]
[1721366169713,0.00083,64284.0,64280.0,0.155568]
[1721366169906,0.06393415,64283.0,64280.0,0.155568]
[1721366170111,0.06693415,64283.0,64280.0,0.155568]
[1721366170314,0.001,64283.0,64280.0,0.155568]
[1721366170673,0.00083,64284.0,64280.0,0.155568]
[1721366170873,0.06593872,64283.0,64280.0,0.155568]
[1721366171079,0.002,64283.0,64280.0,0.155568]
[1721366172229,0.00283,64284.0,64280.0,0.155568]
[1721366172442,0.06393793,64283.0,64280.0,0.155568]
[1721366172642,0.0892,64281.0,64272.0,0.1403]
[1721366172849,0.155572,64279.0,64272.0,0.1403]
[1721366173015,0.06428518,64278.0,64274.0,0.155583]
[1721366173193,0.06428518,64278.0,64272.0,0.1403]
[1721366173195,0.311159,64276.0,64272.0,0.1403]
[1721366173396,0.311159,64276.0,64270.0,0.00963695]
[1721366173397,0.155585,64274.0,64270.0,0.0621]
[1721366173797,0.466739,64276.0,64270.0,0.217692]
[1721366174022,0.06417793,64275.0,64270.0,0.217692]
[1721366174475,0.466739,64276.0,64274.0,0.004]
[1721366174694,0.155581,64275.0,64274.0,0.004]
[1721366175025,0.155581,64275.0,64270.0,0.0621]
[1721366175229,0.155581,64275.0,64270.0,0.217692]
[1721366175428,0.04660454,64277.0,64274.0,0.003]
[1721366175642,0.06418004,64276.0,64270.0,0.0621]
[1721366175846,0.06418004,64276.0,64271.0,0.0807]
[1721366175995,0.001,64275.0,64274.0,0.007]
[1721366176203,0.001,64275.0,64271.0,0.0807]
[1721366176204,0.001,64275.0,64271.0,0.236289]
[1721366176371,0.001,64275.0,64271.0,0.0807]
[1721366176568,0.001,64275.0,64273.0,0.155586]
[1721366176846,0.04660454,64277.0,64273.0,0.155586]
[1721366176987,0.001,64276.0,64273.0,0.155586]
[1721366178006,0.001,64276.0,64273.0,0.156586]
[1721366178391,0.20216411,64278.0,64273.0,0.156586]
[1721366178593,0.20216411,64278.0,64274.0,0.155583]
[1721366178594,0.0641331,64277.0,64274.0,0.155583]
[1721366178793,0.466708,64280.0,64275.0,0.1403]
[1721366178794,0.04659011,64280.0,64275.0,0.1403]
[1721366179016,0.04659011,64281.0,64278.0,0.155573]
[1721366179221,0.06398818,64280.0,64278.0,0.155573]
[1721366181026,0.06898818,64280.0,64278.0,0.155573]
[1721366181228,0.005,64280.0,64278.0,0.155573]
[1721366181524,0.011,64280.0,64279.0,0.155571]
[1721366182035,0.07480989,64280.0,64279.0,0.155571]
[1721366182253,0.07480989,64280.0,64278.0,0.001]
[1721366182254,0.07480989,64280.0,64278.0,0.156574]
[1721366182451,0.005,64280.0,64278.0,0.155574]
[1721366182626,0.011,64280.0,64279.0,0.001]
[1721366183218,0.07520659,64280.0,64279.0,0.001]
[1721366183568,0.07020659,64280.0,64279.0,0.001]
[1721366184015,0.07520659,64280.0,64279.0,0.001]
[1721366184216,0.011,64280.0,64279.0,0.001]
[1721366184548,0.07521398,64280.0,64279.0,0.001]
[1721366188478,0.68392098,64280.0,64279.0,0.001]
[1721366191076,0.68382875,64280.0,64279.0,0.001]
[1721366191997,0.68465875,64280.0,64279.0,0.001]
[1721366194302,0.73124262,64280.0,64279.0,0.001]
[1721366194744,0.58924262,64280.0,64279.0,0.001]
[1721366197171,0.27810462,64280.0,64279.0,0.001]
[1721366197374,0.27810462,64280.0,64279.0,0.0617]
[1721366197573,0.27819149,64280.0,64279.0,0.0617]
[1721366200583,0.167399,64280.0,64279.0,0.0617]
[1721366200785,0.27827757,64280.0,64279.0,0.0617]
[1721366200993,0.27827757,64280.0,64279.0,0.0612]
[1721366203974,0.27830602,64280.0,64279.0,0.0612]
[1721366204175,0.23170593,64280.0,64279.0,0.0612]
[1721366204901,0.12274279,64280.0,64279.0,0.1382]
[1721366205027,0.12274279,64280.0,64279.0,0.604914]
[1721366205028,0.07613693,64280.0,64279.0,0.604914]
[1721366207042,0.01183,64280.0,64279.0,0.604914]
[1721366207559,0.07606565,64280.0,64279.0,0.604914]
[1721366210460,0.01183,64280.0,64279.0,0.604914]
[1721366210797,0.07600322,64280.0,64279.0,0.604914]
[1721366211166,0.01183,64280.0,64279.0,0.604914]
[1721366211391,0.01183,64280.0,64279.0,0.293771]
[1721366211591,0.01183,64280.0,64279.0,0.233071]
[1721366211945,0.12252851,64280.0,64279.0,0.233071]
[1721366212399,0.30140957,64280.0,64279.0,0.0005]
[1721366212626,0.39060957,64280.0,64279.0,0.0005]
[1721366212841,0.3206734,64280.0,64279.0,0.0005]
[1721366213052,0.32073336,64280.0,64279.0,0.0005]
[1721366215530,0.39065941,64280.0,64279.0,0.0005]
[1721366215930,0.30145941,64280.0,64279.0,0.0005]
[1721366216714,0.23732505,64280.0,64279.0,0.0005]
[1721366216919,0.30133967,64280.0,64279.0,0.0005]
[1721366217729,0.23141305,64280.0,64279.0,0.0005]
[1721366220329,0.32465555,64280.0,64279.0,0.0005]
[1721366222446,0.32431148,64280.0,64279.0,0.0005]
[1721366223079,1.3998388,64280.0,64279.0,0.0005]
[1721366224059,1.3998388,64280.0,64279.0,0.001413]
[1721366224642,0.67186342,64280.0,64279.0,0.001413]
[1721366224845,0.78841978,64280.0,64279.0,0.001413]
[1721366225051,0.69921978,64280.0,64279.0,0.001413]
[1721366225670,0.69915207,64280.0,64279.0,0.001413]
[1721366227226,0.81459887,64280.0,64279.0,0.001413]
[1721366227409,1.62016923,64280.0,64279.0,0.001413]
[1721366227556,1.59125661,64280.0,64279.0,0.001413]
[1721366227761,1.64125661,64280.0,64279.0,0.001413]
[1721366227959,1.71245665,64280.0,64279.0,0.001413]
[1721366228769,1.76369584,64280.0,64279.0,0.001413]
[1721366228996,1.86804541,64280.0,64279.0,0.001413]
[1721366229613,2.01804541,64280.0,64279.0,0.001413]
[1721366229819,1.96804541,64280.0,64279.0,0.001413]
[1721366229980,2.01804541,64280.0,64279.0,0.001413]
[1721366231146,1.96804541,64280.0,64279.0,0.001413]
[1721366231379,1.81369584,64280.0,64279.0,0.001413]
[1721366232022,1.81338386,64280.0,64279.0,0.001413]
[1721366232848,1.8134075,64280.0,64279.0,0.001413]
[1721366233496,1.8634075,64280.0,64279.0,0.001413]
[1721366233810,2.1745455,64280.0,64279.0,0.001413]
[1721366234018,2.32889507,64280.0,64279.0,0.001413]
[1721366234226,2.27889507,64280.0,64279.0,0.001413]
[1721366234627,2.32889507,64280.0,64279.0,0.001413]
[1721366234913,2.32389507,64280.0,64279.0,0.001413]
[1721366235143,2.32389507,64280.0,64279.0,0.002413]
[1721366235144,2.34407314,64280.0,64279.0,0.002413]
[1721366235297,2.33782756,64280.0,64279.0,0.001913]
[1721366235501,2.19147799,64280.0,64279.0,0.001913]
[1721366235700,2.18047799,64280.0,64279.0,0.001913]
[1721366235898,2.19147799,64280.0,64279.0,0.002913]
[1721366236919,2.18347799,64280.0,64279.0,0.001913]
[1721366237137,2.19647799,64280.0,64279.0,0.002913]
[1721366237538,2.35082756,64280.0,64279.0,0.002913]
[1721366238725,2.35086377,64280.0,64279.0,0.002913]
[1721366239143,2.66200177,64280.0,64279.0,0.002913]
[1721366239970,2.81876728,64280.0,64279.0,0.002913]
[1721366240175,2.81876728,64280.0,64268.0,0.000913]
[1721366240176,2.261556,64269.0,64268.0,0.000913]
[1721366240419,2.96964113,64269.0,64268.0,0.000913]
[1721366241447,2.96964113,64269.0,64268.0,0.001913]
[1721366241448,2.98364113,64269.0,64268.0,0.001913]
[1721366241649,2.98298873,64269.0,64268.0,0.001913]
[1721366241854,2.99598873,64269.0,64268.0,0.002913]
[1721366242062,3.14575552,64269.0,64268.0,0.002913]
[1721366242269,3.13038873,64269.0,64268.0,0.002913]
[1721366242440,2.81919673,64269.0,64268.0,0.002913]
[1721366243466,3.13038873,64269.0,64268.0,0.002913]
[1721366244784,3.12887547,64269.0,64268.0,0.002913]
[1721366244942,3.28322504,64269.0,64268.0,0.002913]
[1721366246652,3.28322504,64269.0,64261.0,0.000913]
[1721366246653,2.402837,64262.0,64261.0,0.000913]
[1721366246853,3.06140972,64262.0,64261.0,0.000913]
[1721366247057,3.15871763,64262.0,64261.0,0.000913]
[1721366247264,3.28148442,64262.0,64261.0,0.000913]
[1721366247606,3.33148442,64262.0,64261.0,0.000913]
[1721366248040,3.13061247,64262.0,64261.0,0.002913]
[1721366248240,3.34021247,64262.0,64261.0,0.001913]
[1721366248456,3.32621247,64262.0,64261.0,0.000913]
[1721366248682,3.34021247,64262.0,64261.0,0.001913]
[1721366248816,3.35421247,64262.0,64261.0,0.002913]
[1721366249237,3.35421247,64262.0,64246.0,0.000913]
[1721366249238,1.53651,64253.0,64246.0,0.000913]
[1721366249428,2.61374578,64253.0,64246.0,0.000913]
[1721366249630,2.65987901,64253.0,64246.0,0.000913]
[1721366249914,2.32061289,64253.0,64246.0,0.000913]
[1721366250116,2.41314426,64253.0,64246.0,0.000913]
[1721366250280,2.38016891,64253.0,64246.0,0.000913]
[1721366250476,2.54507857,64253.0,64246.0,0.000913]
[1721366250672,2.47571147,64253.0,64246.0,0.000913]
[1721366251074,2.49050097,64253.0,64246.0,0.000913]
[1721366251289,2.46429914,64253.0,64246.0,0.000913]
[1721366251487,2.400939,64247.0,64246.0,0.000913]
[1721366251726,3.15771891,64247.0,64246.0,0.000913]
[1721366251911,3.20875342,64247.0,64246.0,0.000913]
[1721366252313,3.16252997,64247.0,64246.0,0.000913]
[1721366252725,3.15771891,64247.0,64246.0,0.000913]
[1721366253188,1.762166,64246.0,64243.0,0.000913]
[1721366253405,0.347956,64244.0,64243.0,0.000913]
[1721366253639,1.32641234,64244.0,64243.0,0.000913]
[1721366253852,2.28335134,64244.0,64243.0,0.000913]
[1721366254080,2.25899688,64244.0,64243.0,0.000913]
[1721366254290,2.25841151,64244.0,64243.0,0.000913]
[1721366254503,2.41276108,64244.0,64243.0,0.000913]
[1721366255194,2.43159531,64244.0,64243.0,0.000913]
[1721366255618,2.42676108,64244.0,64243.0,0.000913]
[1721366256016,2.44076108,64244.0,64243.0,0.000913]
[1721366256232,2.44076108,64244.0,64233.0,0.000913]
[1721366256233,1.951124,64234.0,64233.0,0.000913]
[1721366256441,2.7252893,64234.0,64233.0,0.000913]
[1721366256654,2.7482893,64234.0,64233.0,0.000913]
[1721366257287,2.68788452,64234.0,64233.0,0.000913]
[1721366257534,2.74801477,64234.0,64233.0,0.000913]
[1721366257730,2.91636434,64234.0,64233.0,0.000913]
[1721366257936,2.93036434,64234.0,64233.0,0.000913]
[1721366260533,2.93036471,64234.0,64233.0,0.000913]
[1721366263602,2.87023409,64234.0,64233.0,0.000913]
[1721366263814,2.93016158,64234.0,64233.0,0.000913]
[1721366265089,2.69863722,64234.0,64233.0,0.000913]
[1721366265357,2.55613722,64234.0,64233.0,0.000913]
[1721366266928,2.55613136,64234.0,64233.0,0.000913]
[1721366269463,2.50613136,64234.0,64233.0,0.000913]
[1721366270121,2.5155787,64234.0,64233.0,0.000913]
[1721366270252,2.58612039,64234.0,64233.0,0.000913]
[1721366272179,2.64849739,64234.0,64233.0,0.000913]
[1721366273783,2.59854622,64234.0,64233.0,0.000913]
[1721366273995,2.64854622,64234.0,64233.0,0.000913]
[1721366276849,2.64873581,64234.0,64233.0,0.000913]
[1721366277683,2.49438624,64234.0,64233.0,0.000913]
[1721366278413,2.58947559,64234.0,64233.0,0.000913]
[1721366278814,2.49438624,64234.0,64233.0,0.000913]
[1721366279150,2.58944026,64234.0,64233.0,0.000913]
[1721366280187,2.58951701,64234.0,64233.0,0.000913]
[1721366280508,2.74386658,64234.0,64233.0,0.000913]
[1721366282034,2.69386658,64234.0,64233.0,0.000913]
[1721366282260,2.74386658,64234.0,64233.0,0.000913]
[1721366283615,2.74248941,64234.0,64233.0,0.000913]
[1721366286083,2.70691258,64234.0,64233.0,0.000913]
[1721366286288,2.74153768,64234.0,64233.0,0.000913]
[1721366286491,2.74153455,64234.0,64233.0,0.000913]
[1721366288257,2.58718498,64234.0,64233.0,0.000913]
[1721366289268,2.5872544,64234.0,64233.0,0.000913]
[1721366291313,2.1363934,64234.0,64233.0,0.000913]
[1721366291699,2.34547841,64234.0,64233.0,0.000913]
[1721366291890,2.29547841,64234.0,64233.0,0.000913]
[1721366292098,2.44982798,64234.0,64233.0,0.000913]
[1721366292423,2.49726147,64234.0,64233.0,0.000913]
[1721366292607,2.54726147,64234.0,64233.0,0.000913]
[1721366292982,2.27691951,64234.0,64233.0,0.000913]
[1721366293159,2.43151949,64234.0,64233.0,0.000913]
[1721366293476,2.54756621,64234.0,64233.0,0.000913]
[1721366293701,2.43151949,64234.0,64233.0,0.000913]
[1721366293896,2.54761006,64234.0,64233.0,0.000913]
[1721366294220,2.43151949,64234.0,64233.0,0.000913]
[1721366294584,2.22716992,64234.0,64233.0,0.000913]
[1721366295810,2.22738348,64234.0,64233.0,0.000913]
[1721366296017,2.16500648,64234.0,64233.0,0.141513]
[1721366298989,2.01019294,64234.0,64233.0,0.141513]
[1721366299140,2.16508149,64234.0,64233.0,0.141513]
[1721366300279,2.07558149,64234.0,64233.0,0.141513]
[1721366300527,2.16508149,64234.0,64233.0,0.141513]
[1721366301073,2.31943106,64234.0,64233.0,0.141513]
[1721366302097,2.16454251,64234.0,64233.0,0.141513]
[1721366302307,2.31851352,64234.0,64233.0,0.141513]
[1721366302686,2.31851352,64234.0,64233.0,0.000913]
[1721366305583,2.07441657,64234.0,64233.0,0.146713]
[1721366305789,1.66391657,64234.0,64233.0,0.146713]
[1721366307193,1.57441339,64234.0,64233.0,0.146713]
[1721366307483,1.12593641,64234.0,64233.0,0.146713]
[1721366308679,0.35933267,64234.0,64233.0,0.146713]
[1721366308886,0.44851739,64234.0,64233.0,0.146713]
[1721366310567,0.44845606,64234.0,64233.0,0.146713]
[1721366311795,0.75981706,64234.0,64233.0,0.146713]
[1721366312012,0.70063868,64234.0,64233.0,0.146713]
[1721366312212,0.87603897,64234.0,64233.0,0.146713]
[1721366315346,0.75982019,64234.0,64233.0,0.146713]
[1721366315547,0.87600427,64234.0,64233.0,0.146713]
[1721366316212,0.75982019,64234.0,64233.0,0.146713]
[1721366318518,0.75981888,64234.0,64233.0,0.146713]
[1721366318725,0.75992086,64234.0,64233.0,0.146713]
[1721366320469,0.87608423,64234.0,64233.0,0.146713]
[1721366321111,1.65318774,64234.0,64233.0,0.000913]
[1721366321433,2.11002437,64234.0,64233.0,0.000913]
[1721366321633,2.65449861,64234.0,64233.0,0.000913]
[1721366321772,2.65431098,64234.0,64233.0,0.000913]
[1721366321974,2.75866055,64234.0,64233.0,0.000913]
[1721366322847,2.82346055,64234.0,64233.0,0.000913]
[1721366323044,2.68406451,64234.0,64233.0,0.000913]
[1721366323791,2.46491494,64234.0,64233.0,0.000913]
[1721366324021,2.06405394,64234.0,64233.0,0.143113]
[1721366324225,2.2929423,64234.0,64233.0,0.143113]
[1721366324427,1.55983688,64234.0,64233.0,0.143113]
[1721366325019,1.50074088,64234.0,64233.0,0.143113]
[1721366325232,1.55988652,64234.0,64233.0,0.143113]
[1721366325435,1.65365181,64234.0,64233.0,0.143113]
[1721366325642,1.55988652,64234.0,64233.0,0.143113]
[1721366325890,1.7650506,64234.0,64233.0,0.000913]
[1721366326073,2.04904221,64234.0,64233.0,0.000913]
[1721366326425,1.9096506,64234.0,64233.0,0.000913]
[1721366326951,2.2710116,64234.0,64233.0,0.000913]
[1721366328306,2.21023283,64234.0,64233.0,0.000913]
[1721366328458,2.15626736,64234.0,64233.0,0.000913]
[1721366331410,2.00670188,64234.0,64233.0,0.000913]
[1721366331767,2.15571054,64234.0,64233.0,0.000913]
[1721366334545,2.1396144,64234.0,64233.0,0.000913]
[1721366334718,2.13703404,64234.0,64233.0,0.00252355]
[1721366337965,2.13688384,64234.0,64233.0,0.00252355]
[1721366338405,2.13694604,64234.0,64233.0,0.00252355]
[1721366339916,1.589935,64224.0,64223.0,0.0653]
[1721366340114,1.589935,64224.0,64218.0,0.009174]
[1721366340115,0.467136,64221.0,64220.0,0.0643]
[1721366340334,0.78979592,64221.0,64220.0,0.0643]
[1721366340541,1.51264392,64221.0,64220.0,0.0643]
[1721366340736,1.51204714,64221.0,64220.0,0.0643]
[1721366341379,1.52604714,64221.0,64220.0,0.0643]
[1721366341573,1.51204714,64221.0,64220.0,0.0643]
[1721366341986,1.52604714,64221.0,64220.0,0.0643]
[1721366342194,1.43654714,64221.0,64220.0,0.0643]
[1721366342404,1.43654714,64221.0,64220.0,0.1399]
[1721366342405,1.19162314,64221.0,64220.0,0.1399]
[1721366342572,1.30778304,64221.0,64220.0,0.1399]
[1721366342776,1.19162314,64221.0,64220.0,0.1399]
[1721366342974,1.20562314,64221.0,64220.0,0.1399]
[1721366343358,1.20575309,64221.0,64220.0,0.1399]
[1721366344228,1.32189704,64221.0,64220.0,0.1399]
[1721366344786,1.20575309,64221.0,64220.0,0.1399]
[1721366345202,1.32189073,64221.0,64220.0,0.1399]
[1721366345974,1.4762403,64221.0,64220.0,0.1399]
[1721366346231,1.67152666,64221.0,64220.0,0.1399]
[1721366346445,1.69452666,64221.0,64220.0,0.1399]
[1721366346677,1.63921531,64221.0,64220.0,0.1399]
[1721366346879,1.090019,64219.0,64218.0,0.009174]
[1721366347097,1.36740074,64219.0,64218.0,0.009174]
[1721366347228,1.42229092,64219.0,64218.0,0.009174]
[1721366348223,1.64629092,64219.0,64218.0,0.009174]
[1721366348422,1.66029092,64219.0,64218.0,0.009174]
[1721366348655,1.81005771,64219.0,64218.0,0.009174]
[1721366348875,1.66029092,64219.0,64218.0,0.009174]
[1721366349095,1.7491608,64219.0,64218.0,0.009174]
[1721366349295,1.66029092,64219.0,64218.0,0.009174]
[1721366349754,1.65971163,64219.0,64218.0,0.009174]
[1721366349988,1.67371163,64219.0,64218.0,0.009174]
[1721366350166,1.8280612,64219.0,64218.0,0.009174]
[1721366351387,1.91711664,64219.0,64218.0,0.009174]
[1721366352309,1.8280612,64219.0,64218.0,0.009174]
[1721366352511,1.91693321,64219.0,64218.0,0.009174]
[1721366352897,1.91663057,64219.0,64218.0,0.009174]
[1721366353739,1.91742692,64219.0,64218.0,0.009174]
[1721366353923,1.76307735,64219.0,64218.0,0.009174]
[1721366356368,1.67403813,64219.0,64218.0,0.009174]
[1721366357120,1.76351121,64219.0,64218.0,0.009174]
[1721366357416,1.67403813,64219.0,64218.0,0.009174]
[1721366358873,1.67403813,64219.0,64218.0,0.148074]
[1721366359522,1.67414695,64219.0,64218.0,0.148074]
[1721366359715,1.45014695,64219.0,64218.0,0.148074]
[1721366360329,1.60449652,64219.0,64218.0,0.148074]
[1721366360708,1.45014695,64219.0,64218.0,0.148074]
[1721366362630,1.44947428,64219.0,64218.0,0.148074]
[1721366364190,1.53830884,64219.0,64218.0,0.148074]
[1721366365837,1.53828182,64219.0,64218.0,0.148074]
[1721366369104,1.76214563,64219.0,64218.0,0.148074]
[1721366370283,1.62774563,64219.0,64218.0,0.148074]
[1721366372300,1.48500074,64219.0,64218.0,0.148074]
[1721366372412,1.62729471,64219.0,64218.0,0.148074]
[1721366373242,1.83962697,64219.0,64218.0,0.148074]
[1721366375050,1.70015536,64219.0,64218.0,0.148074]
[1721366376100,1.62729471,64219.0,64218.0,0.148074]
[1721366376322,1.76679942,64219.0,64218.0,0.148074]
[1721366376535,1.62729471,64219.0,64218.0,0.148074]
[1721366377809,0.89182671,64219.0,64218.0,0.148074]
[1721366377976,0.89282739,64219.0,64218.0,0.148074]
[1721366378888,0.08161124,64219.0,64218.0,0.303793]
[1721366379104,0.08161124,64219.0,64218.0,0.615232]
[1721366379488,0.028,64219.0,64218.0,0.615232]
[1721366379864,0.014,64219.0,64218.0,0.615232]
[1721366380066,0.018,64219.0,64218.0,0.615232]
[1721366380882,0.004,64219.0,64218.0,0.615232]
[1721366381094,0.009,64219.0,64218.0,0.615232]
[1721366381872,0.009,64219.0,64218.0,0.926671]
[1721366382152,0.009,64219.0,64218.0,0.615232]
[1721366383597,0.009,64219.0,64218.0,0.926671]
[1721366384612,0.009,64219.0,64218.0,1.23811]
[1721366385978,0.005,64219.0,64218.0,1.23811]
[1721366386632,0.00083,64233.0,64229.0,0.15569]
[1721366386849,0.00083,64233.0,64230.0,0.1425]
[1721366387050,0.00083,64233.0,64229.0,0.15569]
[1721366387255,0.00083,64233.0,64230.0,0.15569]
[1721366387425,0.00083,64233.0,64231.0,0.1425]
[1721366388054,0.01483,64233.0,64232.0,0.1425]
[1721366388250,0.00083,64233.0,64232.0,0.1425]
[1721366388454,0.01383,64233.0,64232.0,0.1425]
[1721366388655,0.02783,64233.0,64232.0,0.1425]
[1721366389290,0.11743,64233.0,64232.0,0.1425]
[1721366389816,0.10343,64233.0,64232.0,0.1425]
[1721366390021,0.09043,64233.0,64232.0,0.1425]
[1721366390813,0.11743,64233.0,64232.0,0.1425]
[1721366394298,0.02783,64233.0,64232.0,0.453871]
[1721366394501,0.02783,64233.0,64232.0,0.609556]
[1721366395671,0.02783,64233.0,64232.0,0.920927]
[1721366395865,0.02783,64233.0,64232.0,0.609556]
[1721366396066,0.02783,64233.0,64232.0,0.1425]
[1721366396294,0.01483,64233.0,64232.0,0.1425]
[1721366396514,0.01583,64233.0,64232.0,0.1425]
[1721366396870,0.00183,64233.0,64232.0,0.1425]
[1721366397297,0.00483,64233.0,64232.0,0.1425]
[1721366405426,0.00483,64233.0,64232.0,0.298185]
[1721366405835,0.00483,64233.0,64232.0,0.920927]
[1721366408824,0.00483,64233.0,64232.0,0.609556]
[1721366413192,0.00483,64233.0,64232.0,0.298185]
[1721366413524,0.00483,64233.0,64228.0,0.1475]
[1721366413525,0.09443,64233.0,64228.0,0.1475]
[1721366413752,0.155693,64229.0,64228.0,0.1475]
[1721366413954,0.155693,64229.0,64221.0,0.31142]
[1721366413955,0.155699,64227.0,64223.0,0.1475]
[1721366414156,0.155699,64227.0,64224.0,0.002794]
[1721366415597,0.003,64227.0,64224.0,0.002794]
[1721366416000,0.04714035,64243.0,64240.0,1.830284]
[1721366416178,0.46699,64241.0,64240.0,1.830284]
[1721366416383,1.10759665,64241.0,64240.0,1.830284]
[1721366416850,1.05569874,64241.0,64240.0,1.830284]
[1721366417062,1.41946377,64241.0,64240.0,1.830284]
[1721366418842,1.43429377,64241.0,64240.0,1.830284]
[1721366419064,1.52489377,64241.0,64240.0,1.830284]
[1721366419268,1.57122613,64241.0,64240.0,1.830284]
[1721366419917,1.58522613,64241.0,64240.0,1.830284]
[1721366420114,1.58477032,64241.0,64240.0,1.830284]
[1721366420324,1.6079365,64241.0,64240.0,1.830284]
[1721366421365,1.53843796,64241.0,64240.0,1.830284]
[1721366422193,1.63125528,64241.0,64240.0,1.830284]
[1721366422368,1.53843796,64241.0,64240.0,1.830284]
[1721366422605,1.65445961,64241.0,64240.0,1.830284]
[1721366423224,1.53843796,64241.0,64240.0,1.830284]
[1721366423432,1.48645574,64241.0,64240.0,1.830284]
[1721366423639,1.53858188,64241.0,64240.0,1.830284]
[1721366425576,1.58858188,64241.0,64240.0,1.830284]
[1721366425786,1.60870173,64241.0,64240.0,1.830284]
[1721366426166,1.69564058,64241.0,64240.0,1.830284]
[1721366426354,1.83498207,64241.0,64240.0,1.830284]
[1721366426586,1.67800513,64241.0,64240.0,1.830284]
[1721366426805,1.78480463,64241.0,64240.0,1.830284]
[1721366427213,1.64538138,64241.0,64240.0,1.830284]
[1721366429398,1.4679982,64241.0,64240.0,1.830284]
[1721366429855,1.13350064,64241.0,64240.0,1.892384]
[1721366430508,1.13350064,64241.0,64240.0,1.974884]
[1721366430509,0.51084664,64241.0,64240.0,1.974884]
[1721366430939,0.82217364,64241.0,64240.0,1.974884]
[1721366431153,0.41084664,64241.0,64240.0,1.974884]
[1721366431762,0.2564649,64241.0,64240.0,1.974884]
[1721366432232,0.26026246,64241.0,64240.0,1.974884]
[1721366433092,0.26144628,64241.0,64240.0,1.974884]
[1721366435293,0.37768977,64241.0,64240.0,1.974884]
[1721366436207,0.37782639,64241.0,64240.0,1.974884]
[1721366436418,0.37782618,64241.0,64240.0,1.974884]
[1721366437018,0.26158434,64241.0,64240.0,1.974884]
[1721366438644,0.57291134,64241.0,64240.0,1.974884]
[1721366439312,0.68917802,64241.0,64240.0,1.974884]
[1721366439521,0.57276342,64241.0,64240.0,1.974884]
[1721366439731,0.68903023,64241.0,64240.0,1.974884]
[1721366440207,0.68902796,64241.0,64240.0,1.974884]
[1721366440384,0.57276342,64241.0,64240.0,1.974884]
[1721366440587,0.68902787,64241.0,64240.0,1.974884]
[1721366440794,0.57276342,64241.0,64240.0,1.974884]
[1721366441001,0.68903825,64241.0,64240.0,1.974884]
[1721366442065,0.57276342,64241.0,64240.0,1.974884]
[1721366442266,0.68903271,64241.0,64240.0,1.974884]
[1721366442534,0.37770571,64241.0,64240.0,1.974884]
[1721366442736,0.37720136,64241.0,64240.0,1.974884]
[1721366443938,0.26092807,64241.0,64240.0,1.974884]
[1721366444151,0.10526507,64241.0,64240.0,1.974884]